bitfinex-derivatives/quotes_BTCF0:USTF0_20250517
["timestamp","ask_amount","ask_price","bid_price","bid_amount"]
[1747514860658,0.92191113,103270.0,103260.0,0.2868049]
[1747514864162,1.10191113,103270.0,103260.0,0.2868049]
[1747514865261,0.92191113,103270.0,103260.0,0.32378802]
[1747514866361,1.10191113,103270.0,103260.0,0.32378802]
[1747514868254,0.92191113,103270.0,103260.0,0.32378802]
[1747514868761,0.77066402,103270.0,103260.0,0.32378802]
[1747514869163,0.8282861,103270.0,103260.0,0.32378802]
[1747514869457,0.95066402,103270.0,103260.0,0.32378802]
[1747514870164,0.77066402,103270.0,103260.0,0.32378802]
[1747514875266,0.15547792,103270.0,103260.0,0.32378802]
[1747514876257,0.15547792,103270.0,103260.0,0.3718278]
[1747514876770,0.15447792,103270.0,103260.0,0.7326278]
[1747514877070,0.002,103270.0,103260.0,0.85500572]
[1747514877672,0.002,103270.0,103260.0,0.7326278]
[1747514878265,0.87072489,103280.0,103270.0,0.1935861]
[1747514878565,0.82233239,103280.0,103270.0,0.2871861]
[1747514879463,0.82433239,103280.0,103270.0,0.2871861]
[1747514879670,0.70195447,103280.0,103270.0,0.2871861]
[1747514879874,0.82433239,103280.0,103270.0,0.2871861]
[1747514880164,1.00433239,103280.0,103270.0,0.2871861]
[1747514880371,1.48851031,103280.0,103270.0,0.2554861]
[1747514880577,1.49851031,103280.0,103270.0,0.0619]
[1747514880774,1.49851031,103280.0,103270.0,0.0313]
[1747514880974,1.90827031,103280.0,103270.0,0.2248861]
[1747514885078,1.7570232,103280.0,103270.0,0.2248861]
[1747514887076,0.80569288,103280.0,103270.0,0.2573861]
[1747514887276,1.01057288,103280.0,103270.0,0.2901861]
[1747514887678,1.16649288,103280.0,103270.0,0.2901861]
[1747514888072,0.74339128,103280.0,103270.0,0.2901861]
[1747514888270,0.56339128,103280.0,103270.0,0.2901861]
[1747514888673,0.59469128,103280.0,103270.0,0.2901861]
[1747514889772,0.7170692,103280.0,103270.0,0.2901861]
[1747514889972,0.7484692,103280.0,103270.0,0.2901861]
[1747514891185,0.9284692,103280.0,103270.0,0.2901861]
[1747514891682,1.04836043,103280.0,103270.0,0.2901861]
[1747514892384,0.74598251,103280.0,103270.0,0.2901861]
[1747514892879,0.77828251,103280.0,103270.0,0.2901861]
[1747514893583,1.13908251,103280.0,103270.0,0.2901861]
[1747514894587,0.77828251,103280.0,103270.0,0.2901861]
[1747514894774,1.13908251,103280.0,103270.0,0.2901861]
[1747514898884,1.13908251,103280.0,103270.0,0.32716922]
[1747514899084,1.31908251,103280.0,103270.0,0.32716922]
[1747514900187,1.19670459,103280.0,103270.0,0.32716922]
[1747514900385,1.31908251,103280.0,103270.0,0.32716922]
[1747514901092,1.13908251,103280.0,103270.0,0.32716922]
[1747514904201,1.01670459,103280.0,103270.0,0.32716922]
[1747514904398,1.13908251,103280.0,103270.0,0.32716922]
[1747514904789,0.39863719,103280.0,103270.0,0.68796922]
[1747514904987,0.56694665,103280.0,103270.0,0.68796922]
[1747514905295,0.74694665,103280.0,103270.0,0.68796922]
[1747514905491,0.55337935,103280.0,103270.0,0.68796922]
[1747514905699,0.74694665,103280.0,103270.0,0.68796922]
[1747514906103,0.74594665,103280.0,103270.0,0.68796922]
[1747514907405,0.59275542,103280.0,103270.0,0.73594209]
[1747514912111,0.58731326,103280.0,103270.0,0.73594209]
[1747514912612,0.70969118,103280.0,103270.0,0.73594209]
[1747514913112,0.71513334,103280.0,103270.0,0.73594209]
[1747514914909,0.68426517,103280.0,103270.0,0.73594209]
[1747514915116,1.04506517,103280.0,103270.0,0.37514209]
[1747514915412,1.26304309,103280.0,103270.0,0.34234209]
[1747514915799,1.46776309,103280.0,103270.0,0.31177867]
[1747514916200,1.67248309,103280.0,103270.0,0.31177867]
[1747514917006,1.4896053,103280.0,103270.0,0.2638058]
[1747514917505,1.4896053,103280.0,103270.0,0.27617289]
[1747514918713,1.2868853,103280.0,103270.0,0.27617289]
[1747514918914,1.4926053,103280.0,103270.0,0.27617289]
[1747514919112,1.0831653,103280.0,103270.0,0.27617289]
[1747514919312,1.4926053,103280.0,103270.0,0.27617289]
[1747514920917,1.4926053,103280.0,103270.0,0.30617289]
[1747514921717,1.4926053,103280.0,103270.0,0.25682268]
[1747514923121,1.64379653,103280.0,103270.0,0.25682268]
[1747514933026,1.64383653,103280.0,103270.0,0.25682268]
[1747514935029,1.43911653,103280.0,103270.0,0.25682268]
[1747514935223,1.23435653,103280.0,103270.0,0.28752268]
[1747514935830,1.11197861,103280.0,103270.0,0.28752268]
[1747514936828,1.18197861,103280.0,103270.0,0.28752268]
[1747514937628,1.30435653,103280.0,103270.0,0.28752268]
[1747514937932,1.18197861,103280.0,103270.0,0.28752268]
[1747514938332,1.30435653,103280.0,103270.0,0.28752268]
[1747514940834,1.30435653,103280.0,103270.0,0.09393658]
[1747514941335,1.71379653,103280.0,103270.0,0.09393658]
[1747514941637,1.46904069,103280.0,103270.0,0.28752268]
[1747514941838,1.52141861,103280.0,103270.0,0.28752268]
[1747514942038,0.65557861,103280.0,103270.0,0.28752268]
[1747514942540,1.01637861,103280.0,103270.0,0.28752268]
[1747514945036,0.65557861,103280.0,103270.0,0.28752268]
[1747514945236,1.01637861,103280.0,103270.0,0.28752268]
[1747514948041,1.01637861,103280.0,103270.0,0.32451044]
[1747514948241,0.65557861,103280.0,103270.0,0.32451044]
[1747514948443,0.53320069,103280.0,103270.0,0.32451044]
[1747514948638,0.52775853,103280.0,103270.0,0.32451044]
[1747514949340,0.65013645,103280.0,103270.0,0.32451044]
[1747514949647,0.65557861,103280.0,103270.0,0.32451044]
[1747514953047,0.50438738,103280.0,103270.0,0.32451044]
[1747514953445,0.50438738,103280.0,103270.0,0.28752268]
[1747514953644,0.49894522,103280.0,103270.0,0.28752268]
[1747514954650,0.50438738,103280.0,103270.0,0.28752268]
[1747514956251,0.32438738,103280.0,103270.0,0.28752268]
[1747514957145,0.50438738,103280.0,103270.0,0.28752268]
[1747514964651,0.38200946,103280.0,103270.0,0.28752268]
[1747514966358,0.26450946,103280.0,103270.0,0.28752268]
[1747514967161,0.44450946,103280.0,103270.0,0.28752268]
[1747514968359,0.59758738,103280.0,103270.0,0.28752268]
[1747514973467,0.59758738,103280.0,103270.0,0.32449711]
[1747514973966,0.47520946,103280.0,103270.0,0.32449711]
[1747514974167,0.59758738,103280.0,103270.0,0.32449711]
[1747514978969,0.59214522,103280.0,103270.0,0.32449711]
[1747514979970,0.59758738,103280.0,103270.0,0.32449711]
[1747514980374,0.59758738,103280.0,103270.0,0.37272936]
[1747514981775,0.41220946,103280.0,103270.0,0.37272936]
[1747514982177,0.4067673,103280.0,103270.0,0.37272936]
[1747514982776,0.4390673,103280.0,103270.0,0.37272936]
[1747514983075,0.41220946,103280.0,103270.0,0.37272936]
[1747514983464,0.41220946,103280.0,103270.0,0.32449711]
[1747514983780,0.18844216,103280.0,103270.0,0.80767503]
[1747514984071,0.3765673,103280.0,103270.0,0.80767503]
[1747514984275,0.1965673,103280.0,103270.0,0.80767503]
[1747514985074,0.20200946,103280.0,103270.0,0.80767503]
[1747514986173,0.38200946,103280.0,103270.0,0.85587426]
[1747514987080,0.38200946,103280.0,103270.0,0.86819907]
[1747514988473,0.35114152,103280.0,103270.0,0.86819907]
[1747514991685,0.35114152,103280.0,103270.0,0.74582115]
[1747514994481,0.35114152,103280.0,103270.0,0.86819907]
[1747514997182,0.35114152,103280.0,103270.0,0.74582115]
[1747515000283,0.34569936,103280.0,103270.0,0.74582115]
[1747515001086,0.16569936,103280.0,103270.0,0.74582115]
[1747515002082,0.34569936,103280.0,103270.0,0.74582115]
[1747515002783,0.41109936,103280.0,103270.0,0.38502115]
[1747515003385,0.41654152,103280.0,103270.0,0.74582115]
[1747515006489,0.41654152,103280.0,103270.0,0.38502115]
[1747515006682,0.41654152,103280.0,103270.0,0.74582115]
[1747515008992,0.41654152,103280.0,103270.0,0.38502115]
[1747515009191,0.41654152,103280.0,103270.0,0.74582115]
[1747515010398,0.38424152,103280.0,103270.0,0.74582115]
[1747515010593,0.21954216,103280.0,103270.0,0.74582115]
[1747515010809,0.18644216,103280.0,103270.0,0.86819907]
[1747515011209,0.38000956,103280.0,103270.0,0.86819907]
[1747515011709,0.18644216,103280.0,103270.0,0.86819907]
[1747515012711,0.18644216,103280.0,103270.0,0.91354108]
[1747515013712,0.38000946,103280.0,103270.0,0.91354108]
[1747515021722,0.38000946,103280.0,103270.0,0.86424184]
[1747515026120,0.38000946,103280.0,103270.0,0.81889983]
[1747515026823,0.38000946,103280.0,103270.0,0.86819907]
[1747515027621,0.38000946,103280.0,103270.0,0.50739907]
[1747515027819,0.38000946,103280.0,103270.0,0.86819907]
[1747515028218,0.38000946,103280.0,103270.0,0.50739907]
[1747515028424,0.38000946,103280.0,103270.0,0.86819907]
[1747515028816,0.18644216,103280.0,103270.0,0.86819907]
[1747515029222,0.00644216,103280.0,103270.0,1.04819907]
[1747515030227,0.00644216,103280.0,103270.0,0.86819907]
[1747515031024,0.00544216,103280.0,103270.0,0.87219907]
[1747515031720,0.00544216,103280.0,103270.0,0.9779971]
[1747515032626,0.00544216,103280.0,103270.0,1.06613095]
[1747515033731,0.65728192,103300.0,103290.0,0.1935487]
[1747515034231,0.65728192,103300.0,103290.0,0.2544487]
[1747515034827,0.65728192,103300.0,103290.0,0.2867487]
[1747515035131,0.83928192,103300.0,103290.0,0.2867487]
[1747515037333,0.83928192,103300.0,103290.0,0.2544487]
[1747515038027,0.83928192,103300.0,103290.0,0.26394845]
[1747515040038,0.83928192,103300.0,103290.0,0.30085266]
[1747515047229,0.83928192,103300.0,103290.0,0.33365266]
[1747515049037,0.83928192,103300.0,103290.0,0.32415291]
[1747515055149,0.79089522,103300.0,103290.0,0.32415291]
[1747515058446,0.79089522,103300.0,103290.0,0.37231591]
[1747515063449,0.79089522,103300.0,103290.0,0.73311591]
[1747515064952,0.94215173,103300.0,103290.0,0.68495291]
[1747515065250,0.62780281,103300.0,103290.0,0.68495291]
[1747515065843,0.43425651,103300.0,103290.0,0.80733083]
[1747515066151,0.44778651,103300.0,103290.0,0.81963224]
[1747515067147,0.62578651,103300.0,103290.0,0.81963224]
[1747515067337,0.62578651,103300.0,103290.0,0.82063224]
[1747515068451,0.62578651,103300.0,103290.0,0.8688102]
[1747515071253,0.62578651,103300.0,103290.0,0.74643228]
[1747515071742,0.62578651,103300.0,103290.0,0.69722666]
[1747515073052,0.81096443,103300.0,103290.0,0.69722666]
[1747515074150,0.63096443,103300.0,103290.0,0.69722666]
[1747515074460,0.50858651,103300.0,103290.0,0.69722666]
[1747515075555,0.50858651,103300.0,103290.0,0.33642666]
[1747515075855,0.50858651,103300.0,103290.0,0.69722666]
[1747515076757,0.50858651,103300.0,103290.0,0.73417571]
[1747515077055,0.53918651,103300.0,103290.0,0.73417571]
[1747515079257,0.71918651,103300.0,103290.0,0.73417571]
[1747515079555,0.84156443,103300.0,103290.0,0.73417571]
[1747515080155,0.66156443,103300.0,103290.0,0.73417571]
[1747515080756,0.66156443,103300.0,103290.0,0.37337571]
[1747515080952,0.66156443,103300.0,103290.0,0.73417571]
[1747515081156,0.84156443,103300.0,103290.0,0.73417571]
[1747515081650,0.84156443,103300.0,103290.0,0.74643228]
[1747515082054,0.69030792,103300.0,103290.0,0.74643228]
[1747515082252,0.69030792,103300.0,103290.0,0.38563228]
[1747515082758,0.65944538,103300.0,103290.0,0.38563228]
[1747515087162,0.47944538,103300.0,103290.0,0.38563228]
[1747515093359,0.35706746,103300.0,103290.0,0.38563228]
[1747515093658,0.47944538,103300.0,103290.0,0.38563228]
[1747515096159,0.35706746,103300.0,103290.0,0.38563228]
[1747515096361,0.26366746,103300.0,103290.0,0.8688102]
[1747515096659,0.07013746,103300.0,103290.0,0.8688102]
[1747515097559,0.07013746,103300.0,103290.0,0.87425236]
[1747515098762,0.07013746,103300.0,103290.0,0.8688102]
[1747515103168,0.25013746,103300.0,103290.0,0.8688102]
[1747515104160,0.07013746,103300.0,103290.0,0.8688102]
[1747515105167,0.25013746,103300.0,103290.0,0.8688102]
[1747515108068,0.07013746,103300.0,103290.0,0.8688102]
[1747515108261,0.07013746,103300.0,103290.0,0.99118812]
[1747515108569,0.07013746,103300.0,103290.0,1.07803549]
[1747515109170,0.25013746,103300.0,103290.0,1.07803549]
[1747515109568,0.25013746,103300.0,103290.0,0.95565757]
[1747515110163,0.20693582,103300.0,103290.0,1.07803549]
[1747515110870,0.20693582,103300.0,103290.0,1.18383352]
[1747515111975,0.20499924,103300.0,103290.0,1.71104552]
[1747515112161,0.20499924,103300.0,103290.0,1.81104552]
[1747515113062,0.20499924,103300.0,103290.0,1.73661658]
[1747515114968,0.20499924,103300.0,103290.0,1.72150258]
[1747515117680,0.20499924,103300.0,103290.0,1.61223074]
[1747515118475,0.20499924,103300.0,103290.0,1.51223074]
[1747515119176,0.20499924,103300.0,103290.0,1.92059074]
[1747515122277,0.20499924,103300.0,103290.0,1.92043074]
[1747515125980,0.20499924,103300.0,103290.0,2.28123074]
[1747515126479,0.20499924,103300.0,103290.0,2.40214278]
[1747515127679,0.20499924,103300.0,103290.0,2.48855814]
[1747515128979,0.17414339,103300.0,103290.0,2.48855814]
[1747515130278,9e-08,103300.0,103290.0,2.48855814]
[1747515130485,9e-08,103300.0,103290.0,2.58855814]
[1747515131582,9e-08,103300.0,103290.0,2.52693409]
[1747515132476,9e-08,103300.0,103290.0,2.31533802]
[1747515132688,0.0961,103320.0,103310.0,0.1935116]
[1747515132883,0.002,103320.0,103310.0,1.68825391]
[1747515133084,0.182,103320.0,103310.0,1.78345391]
[1747515133586,0.182,103320.0,103310.0,1.79785003]
[1747515133793,0.185,103320.0,103310.0,1.79785003]
[1747515134087,0.185,103320.0,103310.0,1.84602799]
[1747515134279,0.185,103320.0,103310.0,1.72365007]
[1747515134886,0.187,103320.0,103310.0,1.72365007]
[1747515135288,0.187,103320.0,103310.0,1.93498791]
[1747515135491,0.182,103320.0,103310.0,1.93898791]
[1747515136996,0.182,103320.0,103310.0,2.07443825]
[1747515138698,0.182,103320.0,103310.0,1.62710829]
[1747515138995,0.182,103320.0,103310.0,1.54544621]
[1747515139396,0.182,103320.0,103310.0,1.95524621]
[1747515139697,0.182,103320.0,103310.0,2.30564621]
[1747515141298,0.182,103320.0,103310.0,2.18326829]
[1747515141499,0.182,103320.0,103310.0,2.30564621]
[1747515143493,0.13880846,103320.0,103310.0,2.30792621]
[1747515144697,0.13880846,103320.0,103310.0,2.30986204]
[1747515144897,0.13880846,103320.0,103310.0,2.37003298]
[1747515145494,0.13880846,103320.0,103310.0,1.29803298]
[1747515145703,0.13880846,103320.0,103310.0,2.01963298]
[1747515151505,0.13880846,103320.0,103310.0,2.37003298]
[1747515154511,0.10268036,103320.0,103310.0,2.30986204]
[1747515155002,3.266e-05,103320.0,103310.0,2.30986204]
[1747515155193,3.266e-05,103320.0,103310.0,2.67223996]
[1747515155396,0.0941,103330.0,103320.0,0.1934937]
[1747515155601,0.001,103340.0,103330.0,0.193475]
[1747515155807,0.0633,103340.0,103330.0,1.30379292]
[1747515156208,0.2433,103340.0,103330.0,1.30379292]
[1747515156707,0.2433,103340.0,103330.0,1.35197088]
[1747515157507,0.2443,103340.0,103330.0,1.35197088]
[1747515158216,0.2453,103340.0,103330.0,1.35197088]
[1747515158910,0.2453,103340.0,103330.0,1.04464303]
[1747515159102,0.2453,103340.0,103330.0,1.46172303]
[1747515163017,0.2453,103340.0,103330.0,1.510828]
[1747515164218,0.2453,103340.0,103330.0,1.46569422]
[1747515167815,0.2453,103340.0,103330.0,1.25705422]
[1747515168122,0.2453,103340.0,103330.0,1.41610925]
[1747515168513,0.2453,103340.0,103330.0,1.41614925]
[1747515168916,0.2453,103340.0,103330.0,0.99950925]
[1747515169130,0.2453,103340.0,103330.0,1.35210925]
[1747515169323,0.2777,103340.0,103330.0,0.81313133]
[1747515169621,0.2777,103340.0,103330.0,1.35210925]
[1747515171421,0.2777,103340.0,103330.0,1.22973133]
[1747515171628,0.2777,103340.0,103330.0,1.39727069]
[1747515172719,0.2777,103340.0,103330.0,1.44637566]
[1747515172919,0.2777,103340.0,103330.0,1.47717566]
[1747515173527,0.2777,103340.0,103330.0,1.50787566]
[1747515174028,0.24685163,103340.0,103330.0,1.50787566]
[1747515176433,0.24685163,103340.0,103330.0,1.14707566]
[1747515176628,0.24685163,103340.0,103330.0,1.50787566]
[1747515181237,0.2131,103340.0,103330.0,1.50787566]
[1747515183132,0.2131,103340.0,103330.0,1.09127566]
[1747515183335,0.2155,103340.0,103330.0,1.50743566]
[1747515183633,0.2478,103340.0,103330.0,1.50743566]
[1747515183839,0.2478,103340.0,103330.0,1.50763566]
[1747515184736,0.4412562,103340.0,103330.0,1.09127566]
[1747515184935,0.56363412,103340.0,103330.0,0.96287774]
[1747515185240,0.37017792,103340.0,103330.0,0.96287774]
[1747515185639,0.4412563,103340.0,103330.0,0.96287774]
[1747515186640,0.56363422,103340.0,103330.0,0.96283774]
[1747515187143,0.4412563,103340.0,103330.0,0.96283774]
[1747515187339,0.4412563,103340.0,103330.0,0.93475937]
[1747515187743,0.4412563,103340.0,103330.0,0.96655937]
[1747515188842,0.56363422,103340.0,103330.0,0.78165937]
[1747515190747,0.56363422,103340.0,103330.0,0.36641937]
[1747515190933,0.56363422,103340.0,103330.0,0.57405937]
[1747515191137,0.56363422,103340.0,103330.0,0.56049793]
[1747515191844,0.56363422,103340.0,103330.0,0.59737728]
[1747515192544,0.56363422,103340.0,103330.0,0.38973728]
[1747515192746,0.56363422,103340.0,103330.0,0.59737728]
[1747515193344,0.56363422,103340.0,103330.0,0.38973728]
[1747515193547,0.56363422,103340.0,103330.0,0.62893728]
[1747515193744,0.56363422,103340.0,103330.0,0.62889728]
[1747515193942,0.56363422,103340.0,103330.0,0.42133728]
[1747515194644,0.56363422,103340.0,103330.0,0.62885728]
[1747515195248,0.56363422,103340.0,103330.0,0.42133728]
[1747515195544,0.56363422,103340.0,103330.0,0.62877728]
[1747515195749,0.56363422,103340.0,103330.0,0.42133728]
[1747515196142,0.56363422,103340.0,103330.0,0.62869728]
[1747515196342,0.56363422,103340.0,103330.0,0.42133728]
[1747515197049,0.56363422,103340.0,103330.0,0.62865728]
[1747515197441,0.56363422,103340.0,103330.0,0.62861728]
[1747515197847,0.56363422,103340.0,103330.0,0.57951231]
[1747515198047,0.4412563,103340.0,103330.0,0.57951231]
[1747515199846,0.56363422,103340.0,103330.0,0.57951231]
[1747515205947,0.56363422,103340.0,103330.0,0.57955231]
[1747515206450,0.56123422,103340.0,103330.0,0.57955231]
[1747515207354,0.56123422,103340.0,103330.0,0.54267296]
[1747515207850,0.92203422,103340.0,103330.0,0.54267296]
[1747515208056,0.56123422,103340.0,103330.0,0.54267296]
[1747515208255,0.92203422,103340.0,103330.0,0.54267296]
[1747515208551,0.56363422,103340.0,103330.0,0.54267296]
[1747515208758,0.92443422,103340.0,103330.0,0.54267296]
[1747515210444,0.92443422,103340.0,103330.0,0.54250907]
[1747515210649,0.92443422,103340.0,103330.0,0.33518907]
[1747515211053,0.92443422,103340.0,103330.0,0.54238907]
[1747515211254,0.92443422,103340.0,103330.0,0.54234907]
[1747515211443,1.04681214,103340.0,103330.0,0.33518907]
[1747515212659,1.14358414,103340.0,103330.0,0.27198907]
[1747515213360,1.14358414,103340.0,103330.0,0.22381111]
[1747515213663,1.14358414,103340.0,103330.0,0.26069046]
[1747515215570,1.04681214,103340.0,103330.0,0.26069046]
[1747515219169,1.04681214,103340.0,103330.0,0.29329046]
[1747515219865,1.04681214,103340.0,103330.0,0.25641111]
[1747515221559,1.04681214,103340.0,103330.0,0.28951111]
[1747515228473,1.40761214,103340.0,103330.0,0.28951111]
[1747515236078,1.40521214,103340.0,103330.0,0.28951111]
[1747515237382,1.04441214,103340.0,103330.0,0.28951111]
[1747515239480,1.01211214,103340.0,103330.0,0.28951111]
[1747515252289,0.7673563,103340.0,103330.0,0.28951111]
[1747515252486,1.01211214,103340.0,103330.0,0.28951111]
[1747515253297,0.98101214,103340.0,103330.0,0.28951111]
[1747515253698,0.85863422,103340.0,103330.0,0.28951111]
[1747515253899,0.86863422,103340.0,103330.0,0.28951111]
[1747515254090,0.86863422,103340.0,103330.0,0.32639046]
[1747515256799,0.7462563,103340.0,103330.0,0.32639046]
[1747515257001,0.86863422,103340.0,103330.0,0.32639046]
[1747515257396,0.3854563,103340.0,103330.0,0.32639046]
[1747515257596,0.85863422,103340.0,103330.0,0.32639046]
[1747515257994,0.3754563,103340.0,103330.0,0.32639046]
[1747515259810,0.3754563,103340.0,103330.0,0.28951111]
[1747515260412,0.49783422,103340.0,103330.0,0.28951111]
[1747515260912,0.85863422,103340.0,103330.0,0.28951111]
[1747515263006,0.7362563,103340.0,103330.0,0.28951111]
[1747515263215,0.49783422,103340.0,103330.0,0.28951111]
[1747515264611,0.3754563,103340.0,103330.0,0.28951111]
[1747515264811,0.49783422,103340.0,103330.0,0.32639046]
[1747515265304,0.85863422,103340.0,103330.0,0.32639046]
[1747515270218,0.7362563,103340.0,103330.0,0.32639046]
[1747515270724,0.85863422,103340.0,103330.0,0.32639046]
[1747515275720,1.04501214,103340.0,103330.0,0.32639046]
[1747515275915,1.04741214,103340.0,103330.0,0.32655485]
[1747515280324,1.04741214,103340.0,103330.0,0.2896755]
[1747515281021,0.85863422,103340.0,103330.0,0.2896755]
[1747515281217,0.182,103340.0,103330.0,0.77285342]
[1747515281619,0.182,103340.0,103330.0,1.07648893]
[1747515281830,0.182,103340.0,103330.0,1.28320893]
[1747515284517,0.182,103340.0,103330.0,1.46998093]
[1747515284717,0.30251302,103370.0,103330.0,1.83518927]
[1747515284922,0.17507593,103390.0,103380.0,0.193382]
[1747515285125,0.50481274,103400.0,103380.0,0.193382]
[1747515285322,0.15373942,103400.0,103380.0,1.08873376]
[1747515285525,0.68352318,103420.0,103410.0,0.1933259]
[1747515285724,0.63683769,103420.0,103410.0,0.5541259]
[1747515286027,0.63683769,103420.0,103410.0,0.77319982]
[1747515286228,0.63683769,103420.0,103410.0,1.66523982]
[1747515286427,0.63683769,103420.0,103410.0,1.5428619]
[1747515286622,0.06707398,103430.0,103420.0,0.1933072]
[1747515286831,0.72778902,103440.0,103430.0,0.1932885]
[1747515287024,0.47910451,103440.0,103430.0,0.89186604]
[1747515287220,0.65910451,103440.0,103430.0,0.6471102]
[1747515287526,0.65910451,103440.0,103430.0,0.92921292]
[1747515287729,0.85237431,103440.0,103430.0,0.6471102]
[1747515287920,0.88247431,103440.0,103430.0,1.38685292]
[1747515288121,0.2101,103440.0,103430.0,1.50328699]
[1747515288419,0.0321,103440.0,103430.0,1.60388699]
[1747515288829,0.002,103440.0,103430.0,1.32502427]
[1747515289028,0.002,103440.0,103430.0,1.42170427]
[1747515289330,0.002,103440.0,103430.0,1.70940699]
[1747515289527,0.004,103440.0,103430.0,0.9558776]
[1747515289828,0.004,103440.0,103430.0,1.3025576]
[1747515290025,0.004,103440.0,103430.0,1.6367976]
[1747515290730,0.04418153,103460.0,103450.0,0.1932511]
[1747515290929,0.001,103460.0,103450.0,0.92827255]
[1747515291230,0.0338,103460.0,103450.0,1.17047255]
[1747515291830,0.0398,103460.0,103450.0,1.17047255]
[1747515292228,0.2198,103460.0,103450.0,1.33200517]
[1747515292726,0.2178,103460.0,103450.0,1.33200517]
[1747515293118,0.2178,103460.0,103450.0,1.04186807]
[1747515293425,0.2178,103460.0,103450.0,1.64914807]
[1747515293727,0.77153105,103460.0,103450.0,0.27608517]
[1747515293932,0.80213105,103460.0,103450.0,0.91220517]
[1747515294229,0.80213105,103460.0,103450.0,0.60548517]
[1747515294624,0.80213105,103460.0,103450.0,0.41223407]
[1747515294828,0.61670833,103460.0,103450.0,0.41223407]
[1747515295030,0.80213105,103460.0,103450.0,0.41223407]
[1747515295227,0.61270833,103460.0,103450.0,0.60548567]
[1747515295431,0.80013105,103460.0,103450.0,0.60548567]
[1747515295829,0.61470833,103460.0,103450.0,0.60548567]
[1747515296034,0.80013105,103460.0,103450.0,0.60548567]
[1747515296234,0.61470833,103460.0,103450.0,0.75325593]
[1747515296430,0.80013105,103460.0,103450.0,0.75325593]
[1747515296621,0.61470833,103460.0,103450.0,1.06409593]
[1747515296822,0.61470833,103460.0,103450.0,0.75325593]
[1747515297027,0.80013105,103460.0,103450.0,0.75325593]
[1747515297636,0.80013105,103460.0,103450.0,0.78585593]
[1747515297827,0.61470833,103460.0,103450.0,0.78585593]
[1747515298027,0.61470883,103460.0,103450.0,0.81595593]
[1747515298222,0.2464,103460.0,103450.0,0.81595593]
[1747515298633,0.4090329,103460.0,103450.0,0.81595593]
[1747515299143,0.4408329,103460.0,103450.0,0.97938567]
[1747515299335,0.62625562,103460.0,103450.0,1.09760188]
[1747515299633,0.4408329,103460.0,103450.0,0.56305028]
[1747515299839,0.80133155,103460.0,103450.0,0.87369028]
[1747515300042,0.80133155,103460.0,103450.0,0.53045028]
[1747515300341,0.83423155,103460.0,103450.0,0.72370188]
[1747515300542,0.64880883,103460.0,103450.0,0.72370188]
[1747515300731,0.83423155,103460.0,103450.0,1.03358188]
[1747515300925,0.83423155,103460.0,103450.0,0.91536567]
[1747515301829,0.79725476,103460.0,103450.0,0.91536567]
[1747515302230,0.61183204,103460.0,103450.0,0.91536567]
[1747515302527,0.79725476,103460.0,103450.0,0.91536567]
[1747515302734,0.61183204,103460.0,103450.0,0.91536567]
[1747515302932,0.79725476,103460.0,103450.0,0.91536567]
[1747515303139,0.5876656,103460.0,103450.0,0.91536567]
[1747515303341,0.72994572,103460.0,103450.0,0.91536567]
[1747515303535,0.34528063,103460.0,103450.0,0.91536567]
[1747515303735,0.32712366,103460.0,103450.0,0.91536567]
[1747515303937,0.52035656,103460.0,103450.0,1.09818188]
[1747515304136,0.70577928,103460.0,103450.0,1.09818188]
[1747515304337,0.52035656,103460.0,103450.0,0.78830188]
[1747515304534,0.70577928,103460.0,103450.0,1.40974188]
[1747515304740,0.68577928,103460.0,103450.0,1.40974188]
[1747515304932,0.68377928,103460.0,103450.0,1.40974188]
[1747515305132,0.71417928,103460.0,103450.0,1.44662123]
[1747515305540,0.52875656,103460.0,103450.0,1.44662123]
[1747515306038,0.48561427,103460.0,103450.0,1.44662123]
[1747515306232,0.48561427,103460.0,103450.0,1.32840502]
[1747515306432,0.11730544,103460.0,103450.0,1.32840502]
[1747515306841,0.08440544,103460.0,103450.0,1.32840502]
[1747515307040,0.27763834,103460.0,103450.0,1.32840502]
[1747515307227,0.05260544,103460.0,103450.0,1.32840502]
[1747515307429,0.50654962,103470.0,103460.0,0.1932329]
[1747515307639,0.3862689,103470.0,103460.0,0.6178329]
[1747515308337,0.3862689,103470.0,103460.0,0.66926697]
[1747515308338,0.75169162,103470.0,103460.0,0.66926697]
[1747515308945,0.75169162,103470.0,103460.0,0.71754691]
[1747515309141,0.75369162,103470.0,103460.0,0.71754691]
[1747515309447,0.75369162,103470.0,103460.0,0.7279872]
[1747515310139,0.75369162,103470.0,103460.0,0.71754691]
[1747515310344,0.75369162,103470.0,103460.0,0.72799416]
[1747515310843,0.78669162,103470.0,103460.0,0.72799416]
[1747515311544,0.78669162,103470.0,103460.0,1.31143416]
[1747515311842,0.78669162,103470.0,103460.0,0.69479416]
[1747515312343,0.78669162,103470.0,103460.0,0.6948621]
[1747515313745,0.78669162,103470.0,103460.0,0.84599157]
[1747515314144,0.78669162,103470.0,103460.0,0.81439157]
[1747515314447,1.15165333,103470.0,103460.0,0.22975867]
[1747515314652,1.39318823,103470.0,103460.0,0.22975867]
[1747515315341,0.1932329,103460.0,103450.0,0.76564768]
[1747515315546,0.58583155,103460.0,103450.0,0.76564768]
[1747515316149,0.76583155,103460.0,103450.0,0.76564768]
[1747515317043,0.58040883,103460.0,103450.0,0.76564768]
[1747515317348,0.76583155,103460.0,103450.0,0.76564768]
[1747515317849,0.79733155,103460.0,103450.0,0.76564768]
[1747515318440,0.41867593,103460.0,103450.0,1.04629172]
[1747515318640,0.57911147,103460.0,103450.0,1.07879172]
[1747515318847,0.61823012,103460.0,103450.0,1.07879172]
[1747515319149,0.61823012,103460.0,103450.0,1.38107183]
[1747515320246,0.55659615,103460.0,103450.0,1.53461558]
[1747515321246,0.55117343,103460.0,103450.0,1.53461558]
[1747515321451,0.73373155,103460.0,103450.0,1.53461558]
[1747515321854,0.76413155,103460.0,103450.0,1.53461558]
[1747515322148,0.18,103460.0,103450.0,1.53461558]
[1747515322349,0.3732329,103460.0,103450.0,1.56521558]
[1747515322552,0.18,103460.0,103450.0,1.56521558]
[1747515322953,0.28260032,103460.0,103450.0,1.56521558]
[1747515323145,0.08936742,103460.0,103450.0,1.56521558]
[1747515323345,0.2456206,103460.0,103450.0,1.56521558]
[1747515323551,0.0523871,103460.0,103450.0,1.56521558]
[1747515323751,0.0523871,103460.0,103450.0,1.86213558]
[1747515323950,0.0523871,103460.0,103450.0,2.15929558]
[1747515324157,0.2456206,103460.0,103450.0,2.15929558]
[1747515324654,0.2456206,103460.0,103450.0,2.15857558]
[1747515324854,0.2456206,103460.0,103450.0,2.00483183]
[1747515325452,0.43104332,103460.0,103450.0,2.00483183]
[1747515325853,0.43104332,103460.0,103450.0,2.15482118]
[1747515326362,0.60611925,103460.0,103450.0,2.15482118]
[1747515326859,0.60611925,103460.0,103450.0,2.15362118]
[1747515327255,0.66771925,103460.0,103450.0,1.56166118]
[1747515327448,0.66771925,103460.0,103450.0,1.91087198]
[1747515327449,0.63761925,103460.0,103450.0,1.91087198]
[1747515328361,0.46254332,103460.0,103450.0,1.58555198]